Workbook

Sheet СПИСОК
A2: =ADDRESS(A6,1,) -> $A$3 | B2: Список членов СТСН
A3: № уч. | B3: Свидетельство на уч. | C3: Фамилия | D3: Имя | E3: Очество | F3: Член СТСН | G3: Основной Тел. | H3: Резервный тел. | I3: Личный Email | J3: почтовый индекс | K3: Город | L3: Адрес регистрации | M3: Площадь участка | N3: Кадастр | O3: Улица | P3: Газ учред. | Q3: Газ польз. | R3: Место
A4: =ПОИСК!C3 -> 3
A5: =DGET($A$7:$R$362,COLUMN(A5),$A$3:$R$4) -> 3 | B5: 3 | C5: Баранова | D5: Мария | E5: Михайловна | F5: Нет данных | H5: Нет данных | I5: Нет данных | J5: Нет данных | K5: Нет данных | L5: Нет данных | M5: Нет данных | N5: Нет данных | O5: Нет данных | P5: Нет данных | Q5: Нет данных
A6: =MATCH(A4,A8:A375,0) -> 3 | B6: =HYPERLINK("#'Список'!B"&A6+6,VLOOKUP(A6,A8:R362,2,0)) -> 3 | I6: 123
A7: № уч. | B7: Свидетельство на уч. | C7: Фамилия | D7: Имя | E7: Очество | F7: Член СТСН | G7: Основной Тел. | H7: Резервный тел. | I7: Личный Email | J7: почтовый индекс | K7: Город | L7: Адрес регистрации | M7: Площадь участка | N7: Кадастр | O7: Улица | P7: Газ учред. | Q7: Газ польз. | R7: Место | S7: Примечания
A8: 1 | B8: 11 | C8: Рутберг | D8: Борис | E8: Нет данных | F8: Нет данных | H8: h | I8: I | J8: J | K8: K | L8: L | M8: M | N8: N | O8: O | P8: P | Q8: Q | R8: R
A9: 2 | B9: 22 | C9: Баранов | D9: Игорь | E9: Николаевич | F9: Нет данных | H9: Нет данных | I9: Нет данных | J9: Нет данных | K9: Нет данных | L9: Нет данных | M9: Нет данных | N9: Нет данных | O9: Нет данных | P9: Нет данных | Q9: Нет данных | R9: Нет данных
A10: 3 | B10: 3 | C10: Баранова | D10: Мария | E10: Михайловна | F10: Нет данных | H10: Нет данных | I10: Нет данных | J10: Нет данных | K10: Нет данных | L10: Нет данных | M10: Нет данных | N10: Нет данных | O10: Нет данных | P10: Нет данных | Q10: Нет данных
A11: 4 | B11: 4 | C11: Баранова | D11: Мария | E11: Михайловна | F11: Нет данных | H11: Нет данных | I11: Нет данных | J11: Нет данных | K11: Нет данных | L11: Нет данных | M11: Нет данных | N11: Нет данных | O11: Нет данных | P11: Нет данных | Q11: Нет данных | R11: Нет данных
A12: 5 | B12: 5 | C12: Каюшин | D12: Олег | E12: Игоревич | F12: Нет данных | H12: Нет данных | I12: Нет данных | J12: Нет данных | K12: Нет данных | L12: Нет данных | M12: Нет данных | N12: Нет данных | O12: Нет данных | P12: Нет данных | Q12: Нет данных | R12: Нет данных
A13: 6 | B13: 6 | C13: Каюшин | D13: Олег | E13: Игоревич | F13: Нет данных | H13: Нет данных | I13: Нет данных | J13: Нет данных | K13: Нет данных | L13: Нет данных | M13: Нет данных | N13: Нет данных | O13: Нет данных | P13: Нет данных | Q13: Нет данных | R13: Нет данных
A14: 7 | B14: 7 | C14: Комолова | D14: Ольга | E14: Викторовна | F14: Нет данных | H14: Нет данных | I14: Нет данных | J14: Нет данных | K14: Нет данных | L14: Нет данных | M14: Нет данных | N14: Нет данных | O14: Нет данных | P14: Нет данных | Q14: Нет данных | R14: Нет данных
A15: 8 | B15: 8 | C15: Муравьев | D15: Николай | E15: Александрович | F15: Нет данных | H15: Нет данных | I15: Нет данных | J15: Нет данных | K15: Нет данных | L15: Нет данных | M15: Нет данных | N15: Нет данных | O15: Нет данных | P15: Нет данных | Q15: Нет данных | R15: Нет данных
A16: 9 | B16: Нет данных | C16: Торопова | D16: Клавдия | E16: Дмитриевна | F16: Нет данных | H16: Нет данных | I16: Нет данных | J16: Нет данных | K16: Нет данных | L16: Нет данных | M16: Нет данных | N16: Нет данных | O16: Нет данных | P16: Нет данных | Q16: Нет данных | R16: Нет данных
A17: =A16+1 -> 10 | B17: Нет данных | C17: Маркелова | D17: Алла | E17: Анатольевна | F17: Нет данных | H17: Нет данных | I17: Нет данных | J17: Нет данных | K17: Нет данных | L17: Нет данных | M17: Нет данных | N17: Нет данных | O17: Нет данных | P17: Нет данных | Q17: Нет данных | R17: Нет данных
A18: 11 | B18: Нет данных | C18: Бабыкина | D18: Любовь | E18: Николаевна | F18: Нет данных | H18: Нет данных | I18: Нет данных | J18: Нет данных | K18: Нет данных | L18: Нет данных | M18: Нет данных | N18: Нет данных | O18: Нет данных | P18: Нет данных | Q18: Нет данных | R18: Нет данных
A19: 12 | B19: Нет данных | C19: Ермолаев | D19: Денис | E19: Владимирович | F19: Нет данных | H19: Нет данных | I19: Нет данных | J19: Нет данных | K19: Нет данных | L19: Нет данных | M19: Нет данных | N19: Нет данных | O19: Нет данных | P19: Нет данных | Q19: Нет данных | R19: Нет данных
A20: 13 | B20: Нет данных | C20: Ермолаев | D20: Владимир | E20: Владимирович | F20: Нет данных | H20: Нет данных | I20: Нет данных | J20: Нет данных | K20: Нет данных | L20: Нет данных | M20: Нет данных | N20: Нет данных | O20: Нет данных | P20: Нет данных | Q20: Нет данных | R20: Нет данных
A21: 14 | B21: Нет данных | C21: Ермолаев | D21: Владимир | E21: Владимирович | F21: Нет данных | H21: Нет данных | I21: Нет данных | J21: Нет данных | K21: Нет данных | L21: Нет данных | M21: Нет данных | N21: Нет данных | O21: Нет данных | P21: Нет данных | Q21: Нет данных | R21: Нет данных
A22: 15 | B22: Нет данных | C22: Ермолаев | D22: Владимир | E22: Владимирович | F22: Нет данных | H22: Нет данных | I22: Нет данных | J22: Нет данных | K22: Нет данных | L22: Нет данных | M22: Нет данных | N22: Нет данных | O22: Нет данных | P22: Нет данных | Q22: Нет данных | R22: Нет данных
A23: 16 | B23: Нет данных | C23: Кирилина | D23: Любовь | E23: Семеновна | F23: Нет данных | H23: Нет данных | I23: Нет данных | J23: Нет данных | K23: Нет данных | L23: Нет данных | M23: Нет данных | N23: Нет данных | O23: Нет данных | P23: Нет данных | Q23: Нет данных | R23: Нет данных
A24: 17 | B24: Нет данных | C24: Назаров | D24: Виктор | E24: Филиппович | F24: Нет данных | H24: Нет данных | I24: Нет данных | J24: Нет данных | K24: Нет данных | L24: Нет данных | M24: Нет данных | N24: Нет данных | O24: Нет данных | P24: Нет данных | Q24: Нет данных | R24: Нет данных
A25: 18 | B25: Нет данных | C25: Черепьянов | D25: А. | E25: С. | F25: Нет данных | H25: Нет данных | I25: Нет данных | J25: Нет данных | K25: Нет данных | L25: Нет данных | M25: Нет данных | N25: Нет данных | O25: Нет данных | P25: Нет данных | Q25: Нет данных | R25: Нет данных
A26: 19 | B26: Нет данных | C26: Черепьянов | D26: А. | E26: С. | F26: Нет данных | H26: Нет данных | I26: Нет данных | J26: Нет данных | K26: Нет данных | L26: Нет данных | M26: Нет данных | N26: Нет данных | O26: Нет данных | P26: Нет данных | Q26: Нет данных | R26: Нет данных
A27: 20 | B27: Нет данных | C27: Еремеева | D27: Татьяна | E27: Алексеевна | F27: Нет данных | H27: Нет данных | I27: Нет данных | J27: Нет данных | K27: Нет данных | L27: Нет данных | M27: Нет данных | N27: Нет данных | O27: Нет данных | P27: Нет данных | Q27: Нет данных | R27: Нет данных
A28: 21 | B28: Нет данных | C28: Еремеева | D28: Татьяна | E28: Алексеевна | F28: Нет данных | H28: Нет данных | I28: Нет данных | J28: Нет данных | K28: Нет данных | L28: Нет данных | M28: Нет данных | N28: Нет данных | O28: Нет данных | P28: Нет данных | Q28: Нет данных | R28: Нет данных
A29: 22 | B29: Нет данных | C29: Новоторова | D29: Нина | E29: Тимофеевна | F29: Нет данных | H29: Нет данных | I29: Нет данных | J29: Нет данных | K29: Нет данных | L29: Нет данных | M29: Нет данных | N29: Нет данных | O29: Нет данных | P29: Нет данных | Q29: Нет данных | R29: Нет данных
A30: 23 | B30: Нет данных | C30: Шевень | D30: Василий | E30: Петрович | F30: Нет данных | H30: Нет данных | I30: Нет данных | J30: Нет данных | K30: Нет данных | L30: Нет данных | M30: Нет данных | N30: Нет данных | O30: Нет данных | P30: Нет данных | Q30: Нет данных | R30: Нет данных
A31: 24 | B31: Нет данных | C31: Шевень | D31: Василий | E31: Петрович | F31: Нет данных | H31: Нет данных | I31: Нет данных | J31: Нет данных | K31: Нет данных | L31: Нет данных | M31: Нет данных | N31: Нет данных | O31: Нет данных | P31: Нет данных | Q31: Нет данных | R31: Нет данных
A32: 25 | B32: Нет данных | C32: Шевень | D32: Василий | E32: Петрович | F32: Нет данных | H32: Нет данных | I32: Нет данных | J32: Нет данных | K32: Нет данных | L32: Нет данных | M32: Нет данных | N32: Нет данных | O32: Нет данных | P32: Нет данных | Q32: Нет данных | R32: Нет данных
A33: 26 | B33: Нет данных | C33: Шевень | D33: Василий | E33: Петрович | F33: Нет данных | H33: Нет данных | I33: Нет данных | J33: Нет данных | K33: Нет данных | L33: Нет данных | M33: Нет данных | N33: Нет данных | O33: Нет данных | P33: Нет данных | Q33: Нет данных | R33: Нет данных
A34: 27 | B34: Нет данных | C34: Шевень | D34: Василий | E34: Петрович | F34: Нет данных | H34: Нет данных | I34: Нет данных | J34: Нет данных | K34: Нет данных | L34: Нет данных | M34: Нет данных | N34: Нет данных | O34: Нет данных | P34: Нет данных | Q34: Нет данных | R34: Нет данных
A35: 28 | B35: Нет данных | C35: Шевень | D35: Василий | E35: Петрович | F35: Нет данных | H35: Нет данных | I35: Нет данных | J35: Нет данных | K35: Нет данных | L35: Нет данных | M35: Нет данных | N35: Нет данных | O35: Нет данных | P35: Нет данных | Q35: Нет данных | R35: Нет данных
A36: 29 | B36: Нет данных | C36: Шевень | D36: Василий | E36: Петрович | F36: Нет данных | H36: Нет данных | I36: Нет данных | J36: Нет данных | K36: Нет данных | L36: Нет данных | M36: Нет данных | N36: Нет данных | O36: Нет данных | P36: Нет данных | Q36: Нет данных | R36: Нет данных
A37: 30 | B37: Нет данных | C37: Нет данных | D37: Нет данных | E37: Нет данных | F37: Нет данных | H37: Нет данных | I37: Нет данных | J37: Нет данных | K37: Нет данных | L37: Нет данных | M37: Нет данных | N37: Нет данных | O37: Нет данных | P37: Нет данных | Q37: Нет данных | R37: Нет данных
A38: 31А | B38: Нет данных | C38: Добрынёв | D38: Сергей | E38: Алексеевич | F38: Нет данных | H38: Нет данных | I38: Нет данных | J38: Нет данных | K38: Нет данных | L38: Нет данных | M38: Нет данных | N38: Нет данных | O38: Нет данных | P38: Нет данных | Q38: Нет данных | R38: Нет данных
A39: 31Б | B39: Нет данных | C39: Смирнов | D39: Андрей | E39: Нет данных | F39: Нет данных | H39: Нет данных | I39: Нет данных | J39: Нет данных | K39: Нет данных | L39: Нет данных | M39: Нет данных | N39: Нет данных | O39: Нет данных | P39: Нет данных | Q39: Нет данных | R39: Нет данных
A40: 31В | B40: Нет данных | C40: Заславская | D40: Екатерина | E40: Геннадиевна | F40: Нет данных | H40: Нет данных | I40: Нет данных | J40: Нет данных | K40: Нет данных | L40: Нет данных | M40: Нет данных | N40: Нет данных | O40: Нет данных | P40: Нет данных | Q40: Нет данных | R40: Нет данных
A41: 31Г | B41: Нет данных | C41: Смирнов | D41: Андрей | E41: Нет данных | F41: Нет данных | H41: Нет данных | I41: Нет данных | J41: Нет данных | K41: Нет данных | L41: Нет данных | M41: Нет данных | N41: Нет данных | O41: Нет данных | P41: Нет данных | Q41: Нет данных | R41: Нет данных
A42: 31Д | B42: Нет данных | C42: Зайцев | D42: Игорь | E42: Адольфович | F42: Нет данных | H42: Нет данных | I42: Нет данных | J42: Нет данных | K42: Нет данных | L42: Нет данных | M42: Нет данных | N42: Нет данных | O42: Нет данных | P42: Нет данных | Q42: Нет данных | R42: Нет данных
A43: 31Е | B43: 333 | C43: Зайцев | D43: Игорь | E43: Адольфович | F43: Нет данных | H43: Нет данных | I43: Нет данных | J43: Нет данных | K43: Нет данных | L43: Нет данных | M43: Нет данных | N43: Нет данных | O43: Нет данных | P43: Нет данных | Q43: Нет данных | R43: Нет данных
A44: 31Ж | B44: пррр | C44: Воронина | D44: Нина | E44: Алексеевна | F44: Нет данных | H44: Нет данных | I44: Нет данных | J44: Нет данных | K44: Нет данных | L44: Нет данных | M44: Нет данных | N44: Нет данных | O44: Нет данных | P44: Нет данных | Q44: Нет данных | R44: Нет данных
A45: 31З | B45: Нет данных | C45: Великодный | D45: Алексей | E45: Валентинович | F45: Нет данных | H45: Нет данных | I45: Нет данных | J45: Нет данных | K45: Нет данных | L45: Нет данных | M45: Нет данных | N45: Нет данных | O45: Нет данных | P45: Нет данных | Q45: Нет данных | R45: Нет данных
A46: 31И | B46: Нет данных | C46: Сычёв | D46: Нет данных | E46: Нет данных | F46: Нет данных | H46: Нет данных | I46: Нет данных | J46: Нет данных | K46: Нет данных | L46: Нет данных | M46: Нет данных | N46: Нет данных | O46: Нет данных | P46: Нет данных | Q46: Нет данных | R46: Нет данных
A47: 31К | B47: Нет данных | C47: Зубцов | D47: Вячеслав | E47: Васильевич | F47: Нет данных | H47: Нет данных | I47: Нет данных | J47: Нет данных | K47: Нет данных | L47: Нет данных | M47: Нет данных | N47: Нет данных | O47: Нет данных | P47: Нет данных | Q47: Нет данных | R47: Нет данных
A48: 31Л | B48: Нет данных | C48: Бронников | D48: Геннадий | E48: Николаевич | F48: Нет данных | H48: Нет данных | I48: Нет данных | J48: Нет данных | K48: Нет данных | L48: Нет данных | M48: Нет данных | N48: Нет данных | O48: Нет данных | P48: Нет данных | Q48: Нет данных | R48: Нет данных
A49: 31М | B49: Нет данных | C49: Бахтиев | D49: Артур | E49: Шамильевич | F49: Нет данных | H49: Нет данных | I49: Нет данных | J49: Нет данных | K49: Нет данных | L49: Нет данных | M49: Нет данных | N49: Нет данных | O49: Нет данных | P49: Нет данных | Q49: Нет данных | R49: Нет данных
A50: 31Н | B50: Нет данных | C50: Соломонов | D50: Дмитрий | E50: Геннадиевич | F50: Нет данных | H50: Нет данных | I50: Нет данных | J50: Нет данных | K50: Нет данных | L50: Нет данных | M50: Нет данных | N50: Нет данных | O50: Нет данных | P50: Нет данных | Q50: Нет данных | R50: Нет данных
A51: 31О | B51: Нет данных | C51: Заславский | D51: Александр | E51: Маркович | F51: Нет данных | H51: Нет данных | I51: Нет данных | J51: Нет данных | K51: Нет данных | L51: Нет данных | M51: Нет данных | N51: Нет данных | O51: Нет данных | P51: Нет данных | Q51: Нет данных | R51: Нет данных
A52: 32 | B52: Нет данных | C52: Аммонова | D52: Надежда | E52: Ивановна | F52: Нет данных | H52: Нет данных | I52: Нет данных | J52: Нет данных | K52: Нет данных | L52: Нет данных | M52: Нет данных | N52: Нет данных | O52: Нет данных | P52: Нет данных | Q52: Нет данных | R52: Нет данных
A53: =A52+1 -> 33 | B53: Нет данных | C53: Алексеева | D53: Виктория | E53: Павловна | F53: Нет данных | H53: Нет данных | I53: Нет данных | J53: Нет данных | K53: Нет данных | L53: Нет данных | M53: Нет данных | N53: Нет данных | O53: Нет данных | P53: Нет данных | Q53: Нет данных | R53: Нет данных
A54: =A53+1 -> 34 | B54: Нет данных | C54: Алексеева | D54: Виктория | E54: Павловна | F54: Нет данных | H54: Нет данных | I54: Нет данных | J54: Нет данных | K54: Нет данных | L54: Нет данных | M54: Нет данных | N54: Нет данных | O54: Нет данных | P54: Нет данных | Q54: Нет данных | R54: Нет данных
A55: 35 | B55: Нет данных | C55: Алексеева | D55: Виктория | E55: Павловна | F55: Нет данных | H55: Нет данных | I55: Нет данных | J55: Нет данных | K55: Нет данных | L55: Нет данных | M55: Нет данных | N55: Нет данных | O55: Нет данных | P55: Нет данных | Q55: Нет данных | R55: Нет данных
A56: 36 | B56: Нет данных | C56: Сухарева | D56: Нина | E56: Николаевна | F56: Нет данных | H56: Нет данных | I56: Нет данных | J56: Нет данных | K56: Нет данных | L56: Нет данных | M56: Нет данных | N56: Нет данных | O56: Нет данных | P56: Нет данных | Q56: Нет данных | R56: Нет данных
A57: 37 | B57: Нет данных | C57: Иванов | D57: Михаил | E57: Юрьевич | F57: Нет данных | H57: Нет данных | I57: Нет данных | J57: Нет данных | K57: Нет данных | L57: Нет данных | M57: Нет данных | N57: Нет данных | O57: Нет данных | P57: Нет данных | Q57: Нет данных | R57: Нет данных
A58: 38 | B58: Нет данных | C58: Иванов | D58: Михаил | E58: Юрьевич | F58: Нет данных | H58: Нет данных | I58: Нет данных | J58: Нет данных | K58: Нет данных | L58: Нет данных | M58: Нет данных | N58: Нет данных | O58: Нет данных | P58: Нет данных | Q58: Нет данных | R58: Нет данных
A59: 39 | B59: Нет данных | C59: Иванов | D59: Михаил | E59: Юрьевич | F59: Нет данных | H59: Нет данных | I59: Нет данных | J59: Нет данных | K59: Нет данных | L59: Нет данных | M59: Нет данных | N59: Нет данных | O59: Нет данных | P59: Нет данных | Q59: Нет данных | R59: Нет данных
A60: 40 | B60: Нет данных | C60: Корнюшонкова | D60: Муза | E60: Николаевна | F60: Нет данных | H60: Нет данных | I60: Нет данных | J60: Нет данных | K60: Нет данных | L60: Нет данных | M60: Нет данных | N60: Нет данных | O60: Нет данных | P60: Нет данных | Q60: Нет данных | R60: Нет данных
A61: 41 | B61: Нет данных | C61: Зайцева | D61: Любовь | E61: Николаевна | F61: Нет данных | H61: Нет данных | I61: Нет данных | J61: Нет данных | K61: Нет данных | L61: Нет данных | M61: Нет данных | N61: Нет данных | O61: Нет данных | P61: Нет данных | Q61: Нет данных | R61: Нет данных
A62: 42 | B62: Нет данных | C62: Ермолаева | D62: Валерия | E62: Владимировна | F62: Нет данных | H62: Нет данных | I62: Нет данных | J62: Нет данных | K62: Нет данных | L62: Нет данных | M62: Нет данных | N62: Нет данных | O62: Нет данных | P62: Нет данных | Q62: Нет данных | R62: Нет данных
A63: 43 | B63: Нет данных | C63: Ермолаева | D63: Валерия | E63: Владимировна | F63: Нет данных | H63: Нет данных | I63: Нет данных | J63: Нет данных | K63: Нет данных | L63: Нет данных | M63: Нет данных | N63: Нет данных | O63: Нет данных | P63: Нет данных | Q63: Нет данных | R63: Нет данных
A64: 44 | B64: Нет данных | C64: Платонова | D64: Нина | E64: Ивановна | F64: Нет данных | H64: Нет данных | I64: Нет данных | J64: Нет данных | K64: Нет данных | L64: Нет данных | M64: Нет данных | N64: Нет данных | O64: Нет данных | P64: Нет данных | Q64: Нет данных | R64: Нет данных
A65: 45 | B65: Нет данных | C65: Лыс | D65: Эдита | E65: Азадовна | F65: Нет данных | H65: Нет данных | I65: Нет данных | J65: Нет данных | K65: Нет данных | L65: Нет данных | M65: Нет данных | N65: Нет данных | O65: Нет данных | P65: Нет данных | Q65: Нет данных | R65: Нет данных
A66: 46 | B66: Нет данных | C66: Рудой | D66: Любовь | E66: Сергеевна | F66: Нет данных | H66: Нет данных | I66: Нет данных | J66: Нет данных | K66: Нет данных | L66: Нет данных | M66: Нет данных | N66: Нет данных | O66: Нет данных | P66: Нет данных | Q66: Нет данных | R66: Нет данных
A67: 47 | B67: Нет данных | C67: Митропольский | D67: Андрей | E67: Сергеевич | F67: Нет данных | H67: Нет данных | I67: Нет данных | J67: Нет данных | K67: Нет данных | L67: Нет данных | M67: Нет данных | N67: Нет данных | O67: Нет данных | P67: Нет данных | Q67: Нет данных | R67: Нет данных
A68: 48 | B68: Нет данных | C68: Митропольский | D68: Андрей | E68: Сергеевич | F68: Нет данных | H68: Нет данных | I68: Нет данных | J68: Нет данных | K68: Нет данных | L68: Нет данных | M68: Нет данных | N68: Нет данных | O68: Нет данных | P68: Нет данных | Q68: Нет данных | R68: Нет данных
A69: 49 | B69: Нет данных | C69: Митропольский | D69: Андрей | E69: Сергеевич | F69: Нет данных | H69: Нет данных | I69: Нет данных | J69: Нет данных | K69: Нет данных | L69: Нет данных | M69: Нет данных | N69: Нет данных | O69: Нет данных | P69: Нет данных | Q69: Нет данных | R69: Нет данных
A70: 50 | B70: Нет данных | C70: Митропольский | D70: Андрей | E70: Сергеевич | F70: Нет данных | H70: Нет данных | I70: Нет данных | J70: Нет данных | K70: Нет данных | L70: Нет данных | M70: Нет данных | N70: Нет данных | O70: Нет данных | P70: Нет данных | Q70: Нет данных | R70: Нет данных
A71: 51 | B71: Нет данных | C71: Великодный | D71: Алексей | E71: Валентинович | F71: Нет данных | H71: Нет данных | I71: Нет данных | J71: Нет данных | K71: Нет данных | L71: Нет данных | M71: Нет данных | N71: Нет данных | O71: Нет данных | P71: Нет данных | Q71: Нет данных | R71: Нет данных
A72: 52 | B72: Нет данных | C72: Великодный | D72: Алексей | E72: Валентинович | F72: Нет данных | H72: Нет данных | I72: Нет данных | J72: Нет данных | K72: Нет данных | L72: Нет данных | M72: Нет данных | N72: Нет данных | O72: Нет данных | P72: Нет данных | Q72: Нет данных | R72: Нет данных
A73: 53 | B73: Нет данных | C73: Угарова | D73: Татьяна | E73: Владимировна | F73: Нет данных | H73: Нет данных | I73: Нет данных | J73: Нет данных | K73: Нет данных | L73: Нет данных | M73: Нет данных | N73: Нет данных | O73: Нет данных | P73: Нет данных | Q73: Нет данных | R73: Нет данных
A74: 54 | B74: Нет данных | C74: Угарова | D74: Татьяна | E74: Владимировна | F74: Нет данных | H74: Нет данных | I74: Нет данных | J74: Нет данных | K74: Нет данных | L74: Нет данных | M74: Нет данных | N74: Нет данных | O74: Нет данных | P74: Нет данных | Q74: Нет данных | R74: Нет данных
A75: 55 | B75: Нет данных | C75: Зайцева | D75: Ольга | E75: Вадимовна | F75: Нет данных | H75: Нет данных | I75: Нет данных | J75: Нет данных | K75: Нет данных | L75: Нет данных | M75: Нет данных | N75: Нет данных | O75: Нет данных | P75: Нет данных | Q75: Нет данных | R75: Нет данных
A76: 56 | B76: Нет данных | C76: Лошкарева | D76: Елена | E76: Борисовна | F76: Нет данных | H76: Нет данных | I76: Нет данных | J76: Нет данных | K76: Нет данных | L76: Нет данных | M76: Нет данных | N76: Нет данных | O76: Нет данных | P76: Нет данных | Q76: Нет данных | R76: Нет данных
A77: 57 | B77: Нет данных | C77: Кудряшова | D77: Галина | E77: Александровна | F77: Нет данных | H77: Нет данных | I77: Нет данных | J77: Нет данных | K77: Нет данных | L77: Нет данных | M77: Нет данных | N77: Нет данных | O77: Нет данных | P77: Нет данных | Q77: Нет данных | R77: Нет данных
A78: 58 | B78: Нет данных | C78: Марграф | D78: Виктор | E78: Федорович | F78: Нет данных | H78: Нет данных | I78: Нет данных | J78: Нет данных | K78: Нет данных | L78: Нет данных | M78: Нет данных | N78: Нет данных | O78: Нет данных | P78: Нет данных | Q78: Нет данных | R78: Нет данных
A79: 59 | B79: Нет данных | C79: Марграф | D79: Виктор | E79: Федорович | F79: Нет данных | H79: Нет данных | I79: Нет данных | J79: Нет данных | K79: Нет данных | L79: Нет данных | M79: Нет данных | N79: Нет данных | O79: Нет данных | P79: Нет данных | Q79: Нет данных | R79: Нет данных
A80: 60 | B80: Нет данных | C80: Охримук | D80: Дмитрий | E80: Геннадьевич | F80: Нет данных | H80: Нет данных | I80: Нет данных | J80: Нет данных | K80: Нет данных | L80: Нет данных | M80: Нет данных | N80: Нет данных | O80: Нет данных | P80: Нет данных | Q80: Нет данных | R80: Нет данных
A81: 61 | B81: Нет данных | C81: Жанибекова | D81: Виктория | E81: Филипповна | F81: Нет данных | H81: Нет данных | I81: Нет данных | J81: Нет данных | K81: Нет данных | L81: Нет данных | M81: Нет данных | N81: Нет данных | O81: Нет данных | P81: Нет данных | Q81: Нет данных | R81: Нет данных
A82: 62 | B82: Нет данных | C82: Жанибекова | D82: Виктория | E82: Филипповна | F82: Нет данных | H82: Нет данных | I82: Нет данных | J82: Нет данных | K82: Нет данных | L82: Нет данных | M82: Нет данных | N82: Нет данных | O82: Нет данных | P82: Нет данных | Q82: Нет данных | R82: Нет данных
A83: 63 | B83: Нет данных | C83: Кузнецова | D83: Светлана | E83: Юрьевна | F83: Нет данных | H83: Нет данных | I83: Нет данных | J83: Нет данных | K83: Нет данных | L83: Нет данных | M83: Нет данных | N83: Нет данных | O83: Нет данных | P83: Нет данных | Q83: Нет данных | R83: Нет данных
A84: 64 | B84: Нет данных | C84: Алсаев | D84: Владимир | E84: Максимович | F84: Нет данных | H84: Нет данных | I84: Нет данных | J84: Нет данных | K84: Нет данных | L84: Нет данных | M84: Нет данных | N84: Нет данных | O84: Нет данных | P84: Нет данных | Q84: Нет данных | R84: Нет данных
A85: 64А | B85: Нет данных | C85: Новиков | D85: Владимир | E85: Прокопьевич | F85: Нет данных | H85: Нет данных | I85: Нет данных | J85: Нет данных | K85: Нет данных | L85: Нет данных | M85: Нет данных | N85: Нет данных | O85: Нет данных | P85: Нет данных | Q85: Нет данных | R85: Нет данных
A86: 65 | B86: Нет данных | C86: Шамрай | D86: В. | E86: В. | F86: Нет данных | H86: Нет данных | I86: Нет данных | J86: Нет данных | K86: Нет данных | L86: Нет данных | M86: Нет данных | N86: Нет данных | O86: Нет данных | P86: Нет данных | Q86: Нет данных | R86: Нет данных
A87: =A86+1 -> 66 | B87: Нет данных | C87: Дербенева | D87: Раиса | E87: Максимовна | F87: Нет данных | H87: Нет данных | I87: Нет данных | J87: Нет данных | K87: Нет данных | L87: Нет данных | M87: Нет данных | N87: Нет данных | O87: Нет данных | P87: Нет данных | Q87: Нет данных | R87: Нет данных
A88: =A87+1 -> 67 | B88: Нет данных | C88: Кукушкин | D88: Нет данных | E88: Нет данных | F88: Нет данных | H88: Нет данных | I88: Нет данных | J88: Нет данных | K88: Нет данных | L88: Нет данных | M88: Нет данных | N88: Нет данных | O88: Нет данных | P88: Нет данных | Q88: Нет данных | R88: Нет данных
A89: 68 | B89: Нет данных | C89: Новиков | D89: Владимир | E89: Прокопьевич | F89: Нет данных | H89: Нет данных | I89: Нет данных | J89: Нет данных | K89: Нет данных | L89: Нет данных | M89: Нет данных | N89: Нет данных | O89: Нет данных | P89: Нет данных | Q89: Нет данных | R89: Нет данных
A90: 69 | B90: Нет данных | C90: Чернова | D90: Марина | E90: Владимировна | F90: Нет данных | H90: Нет данных | I90: Нет данных | J90: Нет данных | K90: Нет данных | L90: Нет данных | M90: Нет данных | N90: Нет данных | O90: Нет данных | P90: Нет данных | Q90: Нет данных | R90: Нет данных
A91: 70 | B91: Нет данных | C91: Чернова | D91: Марина | E91: Владимировна | F91: Нет данных | H91: Нет данных | I91: Нет данных | J91: Нет данных | K91: Нет данных | L91: Нет данных | M91: Нет данных | N91: Нет данных | O91: Нет данных | P91: Нет данных | Q91: Нет данных | R91: Нет данных
A92: 71 | B92: Нет данных | C92: Чернова | D92: Марина | E92: Владимировна | F92: Нет данных | H92: Нет данных | I92: Нет данных | J92: Нет данных | K92: Нет данных | L92: Нет данных | M92: Нет данных | N92: Нет данных | O92: Нет данных | P92: Нет данных | Q92: Нет данных | R92: Нет данных
A93: 72 | B93: Нет данных | C93: Поляков | D93: Вячеслав | E93: Георгиевич | F93: Нет данных | H93: Нет данных | I93: Нет данных | J93: Нет данных | K93: Нет данных | L93: Нет данных | M93: Нет данных | N93: Нет данных | O93: Нет данных | P93: Нет данных | Q93: Нет данных | R93: Нет данных
A94: 73 | B94: Нет данных | C94: Егоров | D94: Дмитрий | E94: Михайлович | F94: Нет данных | H94: Нет данных | I94: Нет данных | J94: Нет данных | K94: Нет данных | L94: Нет данных | M94: Нет данных | N94: Нет данных | O94: Нет данных | P94: Нет данных | Q94: Нет данных | R94: Нет данных
A95: 74 | B95: Нет данных | C95: Багрова | D95: Тамара | E95: Ивановна | F95: Нет данных | H95: Нет данных | I95: Нет данных | J95: Нет данных | K95: Нет данных | L95: Нет данных | M95: Нет данных | N95: Нет данных | O95: Нет данных | P95: Нет данных | Q95: Нет данных | R95: Нет данных
A96: 75 | B96: Нет данных | C96: Зиновьев | D96: Иван | E96: Игоревич | F96: Нет данных | H96: Нет данных | I96: Нет данных | J96: Нет данных | K96: Нет данных | L96: Нет данных | M96: Нет данных | N96: Нет данных | O96: Нет данных | P96: Нет данных | Q96: Нет данных | R96: Нет данных
A97: 76 | B97: Нет данных | C97: Налимовв | D97: Л. | E97: С. | F97: Нет данных | H97: Нет данных | I97: Нет данных | J97: Нет данных | K97: Нет данных | L97: Нет данных | M97: Нет данных | N97: Нет данных | O97: Нет данных | P97: Нет данных | Q97: Нет данных | R97: Нет данных
A98: 77 | B98: Нет данных | C98: Нечепуренко | D98: Валентин | E98: Николаевич | F98: Нет данных | H98: Нет данных | I98: Нет данных | J98: Нет данных | K98: Нет данных | L98: Нет данных | M98: Нет данных | N98: Нет данных | O98: Нет данных | P98: Нет данных | Q98: Нет данных | R98: Нет данных
A99: 78 | B99: Нет данных | C99: Нечепуренко | D99: Валентин | E99: Николаевич | F99: Нет данных | H99: Нет данных | I99: Нет данных | J99: Нет данных | K99: Нет данных | L99: Нет данных | M99: Нет данных | N99: Нет данных | O99: Нет данных | P99: Нет данных | Q99: Нет данных | R99: Нет данных
A100: 79 | B100: Нет данных | C100: Каюшин | D100: Олег | E100: Игоревич | F100: Нет данных | H100: Нет данных | I100: Нет данных | J100: Нет данных | K100: Нет данных | L100: Нет данных | M100: Нет данных | N100: Нет данных | O100: Нет данных | P100: Нет данных | Q100: Нет данных | R100: Нет данных
A101: 80 | B101: Нет данных | C101: Савиных | D101: Нелли | E101: Ильинична | F101: Нет данных | H101: Нет данных | I101: Нет данных | J101: Нет данных | K101: Нет данных | L101: Нет данных | M101: Нет данных | N101: Нет данных | O101: Нет данных | P101: Нет данных | Q101: Нет данных | R101: Нет данных
A102: 81 | B102: Нет данных | C102: Тимошенкова | D102: Мария | E102: Егоровна | F102: Нет данных | H102: Нет данных | I102: Нет данных | J102: Нет данных | K102: Нет данных | L102: Нет данных | M102: Нет данных | N102: Нет данных | O102: Нет данных | P102: Нет данных | Q102: Нет данных | R102: Нет данных
A103: 82 | B103: Нет данных | C103: Кузьменко | D103: Виталий | E103: Александрович | F103: Нет данных | H103: Нет данных | I103: Нет данных | J103: Нет данных | K103: Нет данных | L103: Нет данных | M103: Нет данных | N103: Нет данных | O103: Нет данных | P103: Нет данных | Q103: Нет данных | R103: Нет данных
A104: 83 | B104: Нет данных | C104: Байроктарь | D104: Георгий | E104: Иванович | F104: Нет данных | H104: Нет данных | I104: Нет данных | J104: Нет данных | K104: Нет данных | L104: Нет данных | M104: Нет данных | N104: Нет данных | O104: Нет данных | P104: Нет данных | Q104: Нет данных | R104: Нет данных
A105: 84 | B105: Нет данных | C105: Симонович | D105: Любовь | E105: Ивановна | F105: Нет данных | H105: Нет данных | I105: Нет данных | J105: Нет данных | K105: Нет данных | L105: Нет данных | M105: Нет данных | N105: Нет данных | O105: Нет данных | P105: Нет данных | Q105: Нет данных | R105: Нет данных
A106: 85 | B106: Нет данных | C106: Махновская | D106: Светлана | E106: Павловна | F106: Нет данных | H106: Нет данных | I106: Нет данных | J106: Нет данных | K106: Нет данных | L106: Нет данных | M106: Нет данных | N106: Нет данных | O106: Нет данных | P106: Нет данных | Q106: Нет данных | R106: Нет данных
A107: 86 | B107: Нет данных | C107: Иванов | D107: Михаил | E107: Юрьевич | F107: Нет данных | H107: Нет данных | I107: Нет данных | J107: Нет данных | K107: Нет данных | L107: Нет данных | M107: Нет данных | N107: Нет данных | O107: Нет данных | P107: Нет данных | Q107: Нет данных | R107: Нет данных
A108: 87 | B108: Нет данных | C108: Иванов | D108: Михаил | E108: Юрьевич | F108: Нет данных | H108: Нет данных | I108: Нет данных | J108: Нет данных | K108: Нет данных | L108: Нет данных | M108: Нет данных | N108: Нет данных | O108: Нет данных | P108: Нет данных | Q108: Нет данных | R108: Нет данных
A109: 88 | B109: Нет данных | C109: Паращук | D109: Юрий | E109: Дмитриевич | F109: Нет данных | H109: Нет данных | I109: Нет данных | J109: Нет данных | K109: Нет данных | L109: Нет данных | M109: Нет данных | N109: Нет данных | O109: Нет данных | P109: Нет данных | Q109: Нет данных | R109: Нет данных
A110: 89 | B110: Нет данных | C110: Петрова | D110: Анастасия | E110: Сергеевна | F110: Нет данных | H110: Нет данных | I110: Нет данных | J110: Нет данных | K110: Нет данных | L110: Нет данных | M110: Нет данных | N110: Нет данных | O110: Нет данных | P110: Нет данных | Q110: Нет данных | R110: Нет данных
A111: 90 | B111: Нет данных | C111: Петрова | D111: Анастасия | E111: Сергеевна | F111: Нет данных | H111: Нет данных | I111: Нет данных | J111: Нет данных | K111: Нет данных | L111: Нет данных | M111: Нет данных | N111: Нет данных | O111: Нет данных | P111: Нет данных | Q111: Нет данных | R111: Нет данных
A112: 91 | B112: Нет данных | C112: Кузьмичева | D112: Вера | E112: Панкратьевна | F112: Нет данных | H112: Нет данных | I112: Нет данных | J112: Нет данных | K112: Нет данных | L112: Нет данных | M112: Нет данных | N112: Нет данных | O112: Нет данных | P112: Нет данных | Q112: Нет данных | R112: Нет данных
A113: 92 | B113: Нет данных | C113: Степанова | D113: Надежда | E113: Васильевна | F113: Нет данных | H113: Нет данных | I113: Нет данных | J113: Нет данных | K113: Нет данных | L113: Нет данных | M113: Нет данных | N113: Нет данных | O113: Нет данных | P113: Нет данных | Q113: Нет данных | R113: Нет данных
A114: 93 | B114: Нет данных | C114: Васильянова | D114: Клавдия | E114: Федоровна | F114: Нет данных | H114: Нет данных | I114: Нет данных | J114: Нет данных | K114: Нет данных | L114: Нет данных | M114: Нет данных | N114: Нет данных | O114: Нет данных | P114: Нет данных | Q114: Нет данных | R114: Нет данных
A115: 94 | B115: Нет данных | C115: Зиновьев | D115: Иван | E115: Игоревич | F115: Нет данных | H115: Нет данных | I115: Нет данных | J115: Нет данных | K115: Нет данных | L115: Нет данных | M115: Нет данных | N115: Нет данных | O115: Нет данных | P115: Нет данных | Q115: Нет данных | R115: Нет данных
A116: 95 | B116: Нет данных | C116: Зиновьев | D116: Иван | E116: Игоревич | F116: Нет данных | H116: Нет данных | I116: Нет данных | J116: Нет данных | K116: Нет данных | L116: Нет данных | M116: Нет данных | N116: Нет данных | O116: Нет данных | P116: Нет данных | Q116: Нет данных | R116: Нет данных
A117: 96 | B117: Нет данных | C117: Жук | D117: Дарья | E117: Владимировна | F117: Нет данных | H117: Нет данных | I117: Нет данных | J117: Нет данных | K117: Нет данных | L117: Нет данных | M117: Нет данных | N117: Нет данных | O117: Нет данных | P117: Нет данных | Q117: Нет данных | R117: Нет данных
A118: 97 | B118: Нет данных | C118: Жук | D118: Дарья | E118: Владимировна | F118: Нет данных | H118: Нет данных | I118: Нет данных | J118: Нет данных | K118: Нет данных | L118: Нет данных | M118: Нет данных | N118: Нет данных | O118: Нет данных | P118: Нет данных | Q118: Нет данных | R118: Нет данных
A119: 98 | B119: Нет данных | C119: Прилуцкий | D119: Михаил | E119: Сергеевич | F119: Нет данных | H119: Нет данных | I119: Нет данных | J119: Нет данных | K119: Нет данных | L119: Нет данных | M119: Нет данных | N119: Нет данных | O119: Нет данных | P119: Нет данных | Q119: Нет данных | R119: Нет данных
A120: 99 | B120: Нет данных | C120: Прилуцкий | D120: Михаил | E120: Сергеевич | F120: Нет данных | H120: Нет данных | I120: Нет данных | J120: Нет данных | K120: Нет данных | L120: Нет данных | M120: Нет данных | N120: Нет данных | O120: Нет данных | P120: Нет данных | Q120: Нет данных | R120: Нет данных
A121: 100 | B121: Нет данных | C121: Казакова | D121: Светлана | E121: Анатольевна | F121: Нет данных | H121: Нет данных | I121: Нет данных | J121: Нет данных | K121: Нет данных | L121: Нет данных | M121: Нет данных | N121: Нет данных | O121: Нет данных | P121: Нет данных | Q121: Нет данных | R121: Нет данных
A122: 101 | B122: Нет данных | C122: Казакова | D122: Любовь | E122: Валериановна | F122: Нет данных | H122: Нет данных | I122: Нет данных | J122: Нет данных | K122: Нет данных | L122: Нет данных | M122: Нет данных | N122: Нет данных | O122: Нет данных | P122: Нет данных | Q122: Нет данных | R122: Нет данных
A123: 102 | B123: Нет данных | C123: Могильницкая | D123: Валентина | E123: Алексеевна | F123: Нет данных | H123: Нет данных | I123: Нет данных | J123: Нет данных | K123: Нет данных | L123: Нет данных | M123: Нет данных | N123: Нет данных | O123: Нет данных | P123: Нет данных | Q123: Нет данных | R123: Нет данных
A124: 103 | B124: Нет данных | C124: Багров | D124: Павел | E124: Сергеевич | F124: Нет данных | H124: Нет данных | I124: Нет данных | J124: Нет данных | K124: Нет данных | L124: Нет данных | M124: Нет данных | N124: Нет данных | O124: Нет данных | P124: Нет данных | Q124: Нет данных | R124: Нет данных
A125: 104 | B125: Нет данных | C125: Безуглова | D125: Людмила | E125: Евгеньевна | F125: Нет данных | H125: Нет данных | I125: Нет данных | J125: Нет данных | K125: Нет данных | L125: Нет данных | M125: Нет данных | N125: Нет данных | O125: Нет данных | P125: Нет данных | Q125: Нет данных | R125: Нет данных
A126: 105 | B126: Нет данных | C126: Тютюнин | D126: Александр | E126: Андреевич | F126: Нет данных | H126: Нет данных | I126: Нет данных | J126: Нет данных | K126: Нет данных | L126: Нет данных | M126: Нет данных | N126: Нет данных | O126: Нет данных | P126: Нет данных | Q126: Нет данных | R126: Нет данных
A127: 106 | B127: Нет данных | C127: Тютюнин | D127: Александр | E127: Андреевич | F127: Нет данных | H127: Нет данных | I127: Нет данных | J127: Нет данных | K127: Нет данных | L127: Нет данных | M127: Нет данных | N127: Нет данных | O127: Нет данных | P127: Нет данных | Q127: Нет данных | R127: Нет данных
A128: 107 | B128: Нет данных | C128: Тютюнин | D128: Александр | E128: Андреевич | F128: Нет данных | H128: Нет данных | I128: Нет данных | J128: Нет данных | K128: Нет данных | L128: Нет данных | M128: Нет данных | N128: Нет данных | O128: Нет данных | P128: Нет данных | Q128: Нет данных | R128: Нет данных
A129: 108 | B129: Нет данных | C129: Тютюнин | D129: Александр | E129: Андреевич | F129: Нет данных | H129: Нет данных | I129: Нет данных | J129: Нет данных | K129: Нет данных | L129: Нет данных | M129: Нет данных | N129: Нет данных | O129: Нет данных | P129: Нет данных | Q129: Нет данных | R129: Нет данных
A130: 109 | B130: Нет данных | C130: Тютюнин | D130: Александр | E130: Андреевич | F130: Нет данных | H130: Нет данных | I130: Нет данных | J130: Нет данных | K130: Нет данных | L130: Нет данных | M130: Нет данных | N130: Нет данных | O130: Нет данных | P130: Нет данных | Q130: Нет данных | R130: Нет данных
A131: 110 | B131: Нет данных | C131: Тютюнин | D131: Александр | E131: Андреевич | F131: Нет данных | H131: Нет данных | I131: Нет данных | J131: Нет данных | K131: Нет данных | L131: Нет данных | M131: Нет данных | N131: Нет данных | O131: Нет данных | P131: Нет данных | Q131: Нет данных | R131: Нет данных
A132: 111 | B132: Нет данных | C132: Заславская | D132: Екатерина | E132: Геннадиевна | F132: Нет данных | H132: Нет данных | I132: Нет данных | J132: Нет данных | K132: Нет данных | L132: Нет данных | M132: Нет данных | N132: Нет данных | O132: Нет данных | P132: Нет данных | Q132: Нет данных | R132: Нет данных
A133: 112 | B133: Нет данных | C133: Махновский | D133: Вадим | E133: Маркович | F133: Нет данных | H133: Нет данных | I133: Нет данных | J133: Нет данных | K133: Нет данных | L133: Нет данных | M133: Нет данных | N133: Нет данных | O133: Нет данных | P133: Нет данных | Q133: Нет данных | R133: Нет данных
A134: 113 | B134: Нет данных | C134: Разбегина | D134: Анна | E134: Валентиновна | F134: Нет данных | H134: Нет данных | I134: Нет данных | J134: Нет данных | K134: Нет данных | L134: Нет данных | M134: Нет данных | N134: Нет данных | O134: Нет данных | P134: Нет данных | Q134: Нет данных | R134: Нет данных
A135: 114 | B135: Нет данных | C135: Разбегина | D135: Анна | E135: Валентиновна | F135: Нет данных | H135: Нет данных | I135: Нет данных | J135: Нет данных | K135: Нет данных | L135: Нет данных | M135: Нет данных | N135: Нет данных | O135: Нет данных | P135: Нет данных | Q135: Нет данных | R135: Нет данных
A136: 115 | B136: Нет данных | C136: Симонович | D136: Нина | E136: Васильевна | F136: Нет данных | H136: Нет данных | I136: Нет данных | J136: Нет данных | K136: Нет данных | L136: Нет данных | M136: Нет данных | N136: Нет данных | O136: Нет данных | P136: Нет данных | Q136: Нет данных | R136: Нет данных
A137: 116 | B137: Нет данных | C137: Ганина | D137: Ирина | E137: Кронидовна | F137: Нет данных | H137: Нет данных | I137: Нет данных | J137: Нет данных | K137: Нет данных | L137: Нет данных | M137: Нет данных | N137: Нет данных | O137: Нет данных | P137: Нет данных | Q137: Нет данных | R137: Нет данных
A138: 117 | B138: Нет данных | C138: Индриксон | D138: Ян | E138: Леонидович | F138: Нет данных | H138: Нет данных | I138: Нет данных | J138: Нет данных | K138: Нет данных | L138: Нет данных | M138: Нет данных | N138: Нет данных | O138: Нет данных | P138: Нет данных | Q138: Нет данных | R138: Нет данных
A139: 118 | B139: Нет данных | C139: Муращенко | D139: Валерий | E139: Николаевич | F139: Нет данных | H139: Нет данных | I139: Нет данных | J139: Нет данных | K139: Нет данных | L139: Нет данных | M139: Нет данных | N139: Нет данных | O139: Нет данных | P139: Нет данных | Q139: Нет данных | R139: Нет данных
A140: 119 | B140: Нет данных | C140: Солдатенков | D140: Дмитрий | E140: Евгеньевич | F140: Нет данных | H140: Нет данных | I140: Нет данных | J140: Нет данных | K140: Нет данных | L140: Нет данных | M140: Нет данных | N140: Нет данных | O140: Нет данных | P140: Нет данных | Q140: Нет данных | R140: Нет данных
A141: 120 | B141: Нет данных | C141: Шапошников | D141: Дмитрий | E141: Андреевич | F141: Нет данных | H141: Нет данных | I141: Нет данных | J141: Нет данных | K141: Нет данных | L141: Нет данных | M141: Нет данных | N141: Нет данных | O141: Нет данных | P141: Нет данных | Q141: Нет данных | R141: Нет данных
A142: ? | B142: Нет данных | C142: Шапошникова | D142: Галина | E142: Анатольевна | F142: Нет данных | H142: Нет данных | I142: Нет данных | J142: Нет данных | K142: Нет данных | L142: Нет данных | M142: Нет данных | N142: Нет данных | O142: Нет данных | P142: Нет данных | Q142: Нет данных | R142: Нет данных
A143: 121 | B143: Нет данных | C143: Хренков | D143: Федор | E143: Николаевич | F143: Нет данных | H143: Нет данных | I143: Нет данных | J143: Нет данных | K143: Нет данных | L143: Нет данных | M143: Нет данных | N143: Нет данных | O143: Нет данных | P143: Нет данных | Q143: Нет данных | R143: Нет данных
A144: =A143+1 -> 122 | B144: Нет данных | C144: Скребцова | D144: Олеся | E144: Александровна | F144: Нет данных | H144: Нет данных | I144: Нет данных | J144: Нет данных | K144: Нет данных | L144: Нет данных | M144: Нет данных | N144: Нет данных | O144: Нет данных | P144: Нет данных | Q144: Нет данных | R144: Нет данных
A145: =A144+1 -> 123 | B145: Нет данных | C145: Михеева | D145: Людмила | E145: Ивановна | F145: Нет данных | H145: Нет данных | I145: Нет данных | J145: Нет данных | K145: Нет данных | L145: Нет данных | M145: Нет данных | N145: Нет данных | O145: Нет данных | P145: Нет данных | Q145: Нет данных | R145: Нет данных
A146: 124 | B146: Нет данных | C146: Клименко | D146: Алексей | E146: Андреевич | F146: Нет данных | H146: Нет данных | I146: Нет данных | J146: Нет данных | K146: Нет данных | L146: Нет данных | M146: Нет данных | N146: Нет данных | O146: Нет данных | P146: Нет данных | Q146: Нет данных | R146: Нет данных
A147: 125 | B147: Нет данных | C147: Уткина | D147: Татьяна | E147: Анатольевна | F147: Нет данных | H147: Нет данных | I147: Нет данных | J147: Нет данных | K147: Нет данных | L147: Нет данных | M147: Нет данных | N147: Нет данных | O147: Нет данных | P147: Нет данных | Q147: Нет данных | R147: Нет данных
A148: 126 | B148: Нет данных | C148: Разумовский | D148: Борис | E148: Анатольевич | F148: Нет данных | H148: Нет данных | I148: Нет данных | J148: Нет данных | K148: Нет данных | L148: Нет данных | M148: Нет данных | N148: Нет данных | O148: Нет данных | P148: Нет данных | Q148: Нет данных | R148: Нет данных
A149: 127 | B149: Нет данных | C149: Варфоломеев | D149: Антон | E149: Николаевич | F149: Нет данных | H149: Нет данных | I149: Нет данных | J149: Нет данных | K149: Нет данных | L149: Нет данных | M149: Нет данных | N149: Нет данных | O149: Нет данных | P149: Нет данных | Q149: Нет данных | R149: Нет данных
A150: 128 | B150: Нет данных | C150: Павловский | D150: Дмитрий | E150: Борисович | F150: Нет данных | H150: Нет данных | I150: Нет данных | J150: Нет данных | K150: Нет данных | L150: Нет данных | M150: Нет данных | N150: Нет данных | O150: Нет данных | P150: Нет данных | Q150: Нет данных | R150: Нет данных
A151: 129 | B151: Нет данных | C151: Хромов | D151: Сергей | E151: Антониноич | F151: Нет данных | H151: Нет данных | I151: Нет данных | J151: Нет данных | K151: Нет данных | L151: Нет данных | M151: Нет данных | N151: Нет данных | O151: Нет данных | P151: Нет данных | Q151: Нет данных | R151: Нет данных
A152: 130 | B152: Нет данных | C152: Ерощенко | D152: Сергей | E152: Викторович | F152: Нет данных | H152: Нет данных | I152: Нет данных | J152: Нет данных | K152: Нет данных | L152: Нет данных | M152: Нет данных | N152: Нет данных | O152: Нет данных | P152: Нет данных | Q152: Нет данных | R152: Нет данных
A153: 131 | B153: Нет данных | C153: Криушова | D153: Раиса | E153: Петровна | F153: Нет данных | H153: Нет данных | I153: Нет данных | J153: Нет данных | K153: Нет данных | L153: Нет данных | M153: Нет данных | N153: Нет данных | O153: Нет данных | P153: Нет данных | Q153: Нет данных | R153: Нет данных
A154: 132 | B154: Нет данных | C154: Калинников | D154: Юрий | E154: Константинович | F154: Нет данных | H154: Нет данных | I154: Нет данных | J154: Нет данных | K154: Нет данных | L154: Нет данных | M154: Нет данных | N154: Нет данных | O154: Нет данных | P154: Нет данных | Q154: Нет данных | R154: Нет данных
A155: 133 | B155: Нет данных | C155: Самолетов | D155: Евгений | E155: Иванович | F155: Нет данных | H155: Нет данных | I155: Нет данных | J155: Нет данных | K155: Нет данных | L155: Нет данных | M155: Нет данных | N155: Нет данных | O155: Нет данных | P155: Нет данных | Q155: Нет данных | R155: Нет данных
A156: 134 | B156: Нет данных | C156: Пелевина | D156: Лариса | E156: Андреевна | F156: Нет данных | H156: Нет данных | I156: Нет данных | J156: Нет данных | K156: Нет данных | L156: Нет данных | M156: Нет данных | N156: Нет данных | O156: Нет данных | P156: Нет данных | Q156: Нет данных | R156: Нет данных
A157: 135 | B157: Нет данных | C157: Пелевина | D157: Лариса | E157: Андреевна | F157: Нет данных | H157: Нет данных | I157: Нет данных | J157: Нет данных | K157: Нет данных | L157: Нет данных | M157: Нет данных | N157: Нет данных | O157: Нет данных | P157: Нет данных | Q157: Нет данных | R157: Нет данных
A158: 136 | B158: Нет данных | C158: Фатюшин | D158: Алексей | E158: Михайлович | F158: Нет данных | H158: Нет данных | I158: Нет данных | J158: Нет данных | K158: Нет данных | L158: Нет данных | M158: Нет данных | N158: Нет данных | O158: Нет данных | P158: Нет данных | Q158: Нет данных | R158: Нет данных
A159: 137 | B159: Нет данных | C159: Жиганов | D159: Павел | E159: Анатольевич | F159: Нет данных | H159: Нет данных | I159: Нет данных | J159: Нет данных | K159: Нет данных | L159: Нет данных | M159: Нет данных | N159: Нет данных | O159: Нет данных | P159: Нет данных | Q159: Нет данных | R159: Нет данных
A160: 138 | B160: Нет данных | C160: Баклыков | D160: Александр | E160: Иванович | F160: Нет данных | H160: Нет данных | I160: Нет данных | J160: Нет данных | K160: Нет данных | L160: Нет данных | M160: Нет данных | N160: Нет данных | O160: Нет данных | P160: Нет данных | Q160: Нет данных | R160: Нет данных
A161: 139 | B161: Нет данных | C161: Спирин | D161: Денис | E161: Александрович | F161: Нет данных | H161: Нет данных | I161: Нет данных | J161: Нет данных | K161: Нет данных | L161: Нет данных | M161: Нет данных | N161: Нет данных | O161: Нет данных | P161: Нет данных | Q161: Нет данных | R161: Нет данных
A162: 140 | B162: Нет данных | C162: Коржов | D162: Вячеслав | E162: Иванович | F162: Нет данных | H162: Нет данных | I162: Нет данных | J162: Нет данных | K162: Нет данных | L162: Нет данных | M162: Нет данных | N162: Нет данных | O162: Нет данных | P162: Нет данных | Q162: Нет данных | R162: Нет данных
A163: 141 | B163: Нет данных | C163: Сычев | D163: Юрий | E163: Николаевич | F163: Нет данных | H163: Нет данных | I163: Нет данных | J163: Нет данных | K163: Нет данных | L163: Нет данных | M163: Нет данных | N163: Нет данных | O163: Нет данных | P163: Нет данных | Q163: Нет данных | R163: Нет данных
A164: 142 | B164: Нет данных | C164: Микляева | D164: Ирина | E164: Валерьевна | F164: Нет данных | H164: Нет данных | I164: Нет данных | J164: Нет данных | K164: Нет данных | L164: Нет данных | M164: Нет данных | N164: Нет данных | O164: Нет данных | P164: Нет данных | Q164: Нет данных | R164: Нет данных
A165: 143 | B165: Нет данных | C165: Калугин | D165: Алексей | E165: Владимирович | F165: Нет данных | H165: Нет данных | I165: Нет данных | J165: Нет данных | K165: Нет данных | L165: Нет данных | M165: Нет данных | N165: Нет данных | O165: Нет данных | P165: Нет данных | Q165: Нет данных | R165: Нет данных
A166: 144 | B166: Нет данных | C166: Пучков | D166: Владимир | E166: Викторович | F166: Нет данных | H166: Нет данных | I166: Нет данных | J166: Нет данных | K166: Нет данных | L166: Нет данных | M166: Нет данных | N166: Нет данных | O166: Нет данных | P166: Нет данных | Q166: Нет данных | R166: Нет данных
A167: 145 | B167: Нет данных | C167: Пучков | D167: Владимир | E167: Викторович | F167: Нет данных | H167: Нет данных | I167: Нет данных | J167: Нет данных | K167: Нет данных | L167: Нет данных | M167: Нет данных | N167: Нет данных | O167: Нет данных | P167: Нет данных | Q167: Нет данных | R167: Нет данных
A168: 146 | B168: Нет данных | C168: Смирнова | D168: Екатерина | E168: Евгеньевна | F168: Нет данных | H168: Нет данных | I168: Нет данных | J168: Нет данных | K168: Нет данных | L168: Нет данных | M168: Нет данных | N168: Нет данных | O168: Нет данных | P168: Нет данных | Q168: Нет данных | R168: Нет данных
A169: 147 | B169: Нет данных | C169: Гаврилова | D169: Мария | E169: Анатольевна | F169: Нет данных | H169: Нет данных | I169: Нет данных | J169: Нет данных | K169: Нет данных | L169: Нет данных | M169: Нет данных | N169: Нет данных | O169: Нет данных | P169: Нет данных | Q169: Нет данных | R169: Нет данных
A170: 148 | B170: Нет данных | C170: Бузлина | D170: Антонина | E170: Анатольевна | F170: Нет данных | H170: Нет данных | I170: Нет данных | J170: Нет данных | K170: Нет данных | L170: Нет данных | M170: Нет данных | N170: Нет данных | O170: Нет данных | P170: Нет данных | Q170: Нет данных | R170: Нет данных
A171: 149 | B171: Нет данных | C171: Орехов | D171: Александр | E171: Михайлович | F171: Нет данных | H171: Нет данных | I171: Нет данных | J171: Нет данных | K171: Нет данных | L171: Нет данных | M171: Нет данных | N171: Нет данных | O171: Нет данных | P171: Нет данных | Q171: Нет данных | R171: Нет данных
A172: 150 | B172: Нет данных | C172: Фатюшин | D172: Алексей | E172: Михайлович | F172: Нет данных | H172: Нет данных | I172: Нет данных | J172: Нет данных | K172: Нет данных | L172: Нет данных | M172: Нет данных | N172: Нет данных | O172: Нет данных | P172: Нет данных | Q172: Нет данных | R172: Нет данных
A173: 151 | B173: Нет данных | C173: Придаткина | D173: Галина | E173: Петровна | F173: Нет данных | H173: Нет данных | I173: Нет данных | J173: Нет данных | K173: Нет данных | L173: Нет данных | M173: Нет данных | N173: Нет данных | O173: Нет данных | P173: Нет данных | Q173: Нет данных | R173: Нет данных
A174: 152 | B174: Нет данных | C174: Колотвина | D174: Галина | E174: Федоровна | F174: Нет данных | H174: Нет данных | I174: Нет данных | J174: Нет данных | K174: Нет данных | L174: Нет данных | M174: Нет данных | N174: Нет данных | O174: Нет данных | P174: Нет данных | Q174: Нет данных | R174: Нет данных
A175: 153 | B175: Нет данных | C175: Васильев | D175: Евгений | E175: Иванович | F175: Нет данных | H175: Нет данных | I175: Нет данных | J175: Нет данных | K175: Нет данных | L175: Нет данных | M175: Нет данных | N175: Нет данных | O175: Нет данных | P175: Нет данных | Q175: Нет данных | R175: Нет данных
A176: 154 | B176: Нет данных | C176: Степаненко | D176: Любовь | E176: Николаевна | F176: Нет данных | H176: Нет данных | I176: Нет данных | J176: Нет данных | K176: Нет данных | L176: Нет данных | M176: Нет данных | N176: Нет данных | O176: Нет данных | P176: Нет данных | Q176: Нет данных | R176: Нет данных
A177: 155 | B177: Нет данных | C177: Калинин | D177: Сергей | E177: В | F177: Нет данных | H177: Нет данных | I177: Нет данных | J177: Нет данных | K177: Нет данных | L177: Нет данных | M177: Нет данных | N177: Нет данных | O177: Нет данных | P177: Нет данных | Q177: Нет данных | R177: Нет данных
A178: 156 | B178: Нет данных | C178: Микляева | D178: Ирина | E178: Валерьевна | F178: Нет данных | H178: Нет данных | I178: Нет данных | J178: Нет данных | K178: Нет данных | L178: Нет данных | M178: Нет данных | N178: Нет данных | O178: Нет данных | P178: Нет данных | Q178: Нет данных | R178: Нет данных
A179: 157 | B179: Нет данных | C179: Калинина | D179: Евгения | E179: Эдуардовна | F179: Нет данных | H179: Нет данных | I179: Нет данных | J179: Нет данных | K179: Нет данных | L179: Нет данных | M179: Нет данных | N179: Нет данных | O179: Нет данных | P179: Нет данных | Q179: Нет данных | R179: Нет данных
A180: 158 | B180: Нет данных | C180: Куликова | D180: Ирина | E180: Владимировна | F180: Нет данных | H180: Нет данных | I180: Нет данных | J180: Нет данных | K180: Нет данных | L180: Нет данных | M180: Нет данных | N180: Нет данных | O180: Нет данных | P180: Нет данных | Q180: Нет данных | R180: Нет данных
A181: 159 | B181: Нет данных | C181: Нечаева | D181: Галина | E181: Марковна | F181: Нет данных | H181: Нет данных | I181: Нет данных | J181: Нет данных | K181: Нет данных | L181: Нет данных | M181: Нет данных | N181: Нет данных | O181: Нет данных | P181: Нет данных | Q181: Нет данных | R181: Нет данных
A182: 160 | B182: Нет данных | C182: Семов | D182: Александр | E182: Сергеевич | F182: Нет данных | H182: Нет данных | I182: Нет данных | J182: Нет данных | K182: Нет данных | L182: Нет данных | M182: Нет данных | N182: Нет данных | O182: Нет данных | P182: Нет данных | Q182: Нет данных | R182: Нет данных
A183: 161 | B183: Нет данных | C183: Кузнецова | D183: Ирина | E183: Ивановна | F183: Нет данных | H183: Нет данных | I183: Нет данных | J183: Нет данных | K183: Нет данных | L183: Нет данных | M183: Нет данных | N183: Нет данных | O183: Нет данных | P183: Нет данных | Q183: Нет данных | R183: Нет данных
A184: 162 | B184: Нет данных | C184: Косов | D184: Александр | E184: Александрович | F184: Нет данных | H184: Нет данных | I184: Нет данных | J184: Нет данных | K184: Нет данных | L184: Нет данных | M184: Нет данных | N184: Нет данных | O184: Нет данных | P184: Нет данных | Q184: Нет данных | R184: Нет данных
A185: 163 | B185: Нет данных | C185: Ивченко | D185: Александр | E185: Рудольфович | F185: Нет данных | H185: Нет данных | I185: Нет данных | J185: Нет данных | K185: Нет данных | L185: Нет данных | M185: Нет данных | N185: Нет данных | O185: Нет данных | P185: Нет данных | Q185: Нет данных | R185: Нет данных
A186: 164 | B186: Нет данных | C186: Глинская | D186: Елена | E186: Андреевна | F186: Нет данных | H186: Нет данных | I186: Нет данных | J186: Нет данных | K186: Нет данных | L186: Нет данных | M186: Нет данных | N186: Нет данных | O186: Нет данных | P186: Нет данных | Q186: Нет данных | R186: Нет данных
A187: 165 | B187: Нет данных | C187: Медведь | D187: Элеонора | E187: Ильинична | F187: Нет данных | H187: Нет данных | I187: Нет данных | J187: Нет данных | K187: Нет данных | L187: Нет данных | M187: Нет данных | N187: Нет данных | O187: Нет данных | P187: Нет данных | Q187: Нет данных | R187: Нет данных
A188: 166 | B188: Нет данных | C188: Попова | D188: Елена | E188: Васильевна | F188: Нет данных | H188: Нет данных | I188: Нет данных | J188: Нет данных | K188: Нет данных | L188: Нет данных | M188: Нет данных | N188: Нет данных | O188: Нет данных | P188: Нет данных | Q188: Нет данных | R188: Нет данных
A189: 167 | B189: Нет данных | C189: Костомаров | D189: Виктор | E189: Иванович | F189: Нет данных | H189: Нет данных | I189: Нет данных | J189: Нет данных | K189: Нет данных | L189: Нет данных | M189: Нет данных | N189: Нет данных | O189: Нет данных | P189: Нет данных | Q189: Нет данных | R189: Нет данных
A190: 167А | B190: Нет данных | C190: Карганян | D190: Ирина | E190: Николаевна | F190: Нет данных | H190: Нет данных | I190: Нет данных | J190: Нет данных | K190: Нет данных | L190: Нет данных | M190: Нет данных | N190: Нет данных | O190: Нет данных | P190: Нет данных | Q190: Нет данных | R190: Нет данных
A191: 168 | B191: Нет данных | C191: Соловьева | D191: Нина | E191: Иосифовна | F191: Нет данных | H191: Нет данных | I191: Нет данных | J191: Нет данных | K191: Нет данных | L191: Нет данных | M191: Нет данных | N191: Нет данных | O191: Нет данных | P191: Нет данных | Q191: Нет данных | R191: Нет данных
A192: =A191+1 -> 169 | B192: Нет данных | C192: Пучкова | D192: Ольга | E192: Викторовна | F192: Нет данных | H192: Нет данных | I192: Нет данных | J192: Нет данных | K192: Нет данных | L192: Нет данных | M192: Нет данных | N192: Нет данных | O192: Нет данных | P192: Нет данных | Q192: Нет данных | R192: Нет данных
A193: =A192+1 -> 170 | B193: Нет данных | C193: Дорошенков | D193: Георгий | E193: Васильевич | F193: Нет данных | H193: Нет данных | I193: Нет данных | J193: Нет данных | K193: Нет данных | L193: Нет данных | M193: Нет данных | N193: Нет данных | O193: Нет данных | P193: Нет данных | Q193: Нет данных | R193: Нет данных
A194: 171 | B194: Нет данных | C194: Саулко | D194: Михаил | E194: Иванович | F194: Нет данных | H194: Нет данных | I194: Нет данных | J194: Нет данных | K194: Нет данных | L194: Нет данных | M194: Нет данных | N194: Нет данных | O194: Нет данных | P194: Нет данных | Q194: Нет данных | R194: Нет данных
A195: 172 | B195: Нет данных | C195: Шевченко | D195: Татьяна | E195: Васильевна | F195: Нет данных | H195: Нет данных | I195: Нет данных | J195: Нет данных | K195: Нет данных | L195: Нет данных | M195: Нет данных | N195: Нет данных | O195: Нет данных | P195: Нет данных | Q195: Нет данных | R195: Нет данных
A196: 173 | B196: Нет данных | C196: Дубровин | D196: Андрей | E196: Леонидович | F196: Нет данных | H196: Нет данных | I196: Нет данных | J196: Нет данных | K196: Нет данных | L196: Нет данных | M196: Нет данных | N196: Нет данных | O196: Нет данных | P196: Нет данных | Q196: Нет данных | R196: Нет данных
A197: 174 | B197: Нет данных | C197: Нет данных | D197: Нет данных | E197: Нет данных | F197: Нет данных | H197: Нет данных | I197: Нет данных | J197: Нет данных | K197: Нет данных | L197: Нет данных | M197: Нет данных | N197: Нет данных | O197: Нет данных | P197: Нет данных | Q197: Нет данных | R197: Нет данных
A198: 175 | B198: Нет данных | C198: Рожков | D198: Борис | E198: Игоревич | F198: Нет данных | H198: Нет данных | I198: Нет данных | J198: Нет данных | K198: Нет данных | L198: Нет данных | M198: Нет данных | N198: Нет данных | O198: Нет данных | P198: Нет данных | Q198: Нет данных | R198: Нет данных
A199: 176 | B199: Нет данных | C199: Волкова | D199: Ирина | E199: Сергеевна | F199: Нет данных | H199: Нет данных | I199: Нет данных | J199: Нет данных | K199: Нет данных | L199: Нет данных | M199: Нет данных | N199: Нет данных | O199: Нет данных | P199: Нет данных | Q199: Нет данных | R199: Нет данных
A200: 177 | B200: Нет данных | C200: Глушков | D200: Сергей | E200: Васильевич | F200: Нет данных | H200: Нет данных | I200: Нет данных | J200: Нет данных | K200: Нет данных | L200: Нет данных | M200: Нет данных | N200: Нет данных | O200: Нет данных | P200: Нет данных | Q200: Нет данных | R200: Нет данных
A201: 178 | B201: Нет данных | C201: Медведь | D201: Элеонора | E201: Ильинична( | F201: Нет данных | H201: Нет данных | I201: Нет данных | J201: Нет данных | K201: Нет данных | L201: Нет данных | M201: Нет данных | N201: Нет данных | O201: Нет данных | P201: Нет данных | Q201: Нет данных | R201: Нет данных
... 162 more rows

Sheet ПОИСК
A1: 3
A3: Поиск по № уч. | C3: 3 | E3: Редактор записей | J3: Редактор записей
B5: Фамилия | C5: =СПИСОК!C5 -> Баранова | G5: Площадь участка | H5: =СПИСОК!M5 -> Нет данных
B6: Имя | C6: =СПИСОК!D5 -> Мария | G6: Кадастр | H6: =СПИСОК!N5 -> Нет данных
B7: Очество | C7: =СПИСОК!E5 -> Михайловна | G7: Улица | H7: =СПИСОК!O5 -> Нет данных
B8: Член СТСН | C8: =СПИСОК!F5 -> Нет данных | E8: Привет | G8: Газ учред. | H8: =СПИСОК!P5 -> Нет данных
B9: Основной Тел. | C9: =СПИСОК!G5 ->  | G9: Газ польз. | H9: =СПИСОК!Q5 -> Нет данных
B10: Резервный тел. | C10: =СПИСОК!H5 -> Нет данных
B11: Личный Email | C11: =СПИСОК!I5 -> Нет данных | I11: 123
B12: Почтовый индекс | C12: =СПИСОК!J5 -> Нет данных
B13: Город | C13: =СПИСОК!K5 -> Нет данных
B14: Адрес регистрации | C14: =СПИСОК!L5 -> Нет данных
M16: 123
